bitfinex/quotes_BTCUSD_20240718
["timestamp","ask_amount","ask_price","bid_price","bid_amount"]
[1721316936875,0.470307,63788.0,63787.0,0.03718081]
[1721316937098,0.156749,63796.0,63795.0,0.03718081]
[1721316937316,0.470252,63796.0,63795.0,0.03718081]
[1721316937544,0.156759,63792.0,63791.0,0.03718081]
[1721316937771,0.156759,63792.0,63784.0,0.03997481]
[1721316937772,0.156776,63785.0,63784.0,0.03997481]
[1721316938035,0.156776,63785.0,63771.0,0.15681]
[1721316938036,0.156788,63780.0,63779.0,0.03718081]
[1721316938267,0.15438174,63791.0,63785.0,0.03718081]
[1721316938505,0.15438174,63791.0,63784.0,0.03718081]
[1721316938506,0.156776,63785.0,63784.0,0.03718081]
[1721316938751,0.15438174,63791.0,63781.0,0.03718081]
[1721316938752,0.313568,63782.0,63781.0,0.03718081]
[1721316938974,0.313568,63782.0,63773.0,0.0624]
[1721316938975,0.470373,63779.0,63778.0,0.03718081]
[1721316939206,0.470292,63790.0,63789.0,0.03718081]
[1721316939429,0.78382,63790.0,63789.0,0.03718081]
[1721316939894,0.313533,63789.0,63784.0,0.03718081]
[1721316940116,0.5442,63796.0,63778.0,0.07717479]
[1721316940117,0.470259,63795.0,63791.0,0.03718081]
[1721316940337,0.156766,63789.0,63788.0,0.03718081]
[1721316940563,0.001,63789.0,63788.0,0.03718081]
[1721316940794,0.001,63789.0,63784.0,0.03718081]
[1721316940795,0.470329,63785.0,63784.0,0.03718081]
[1721316941023,0.156779,63784.0,63783.0,0.03718081]
[1721316941325,0.001,63789.0,63779.0,0.03718081]
[1721316941514,0.470365,63780.0,63779.0,0.03718081]
[1721316941748,0.156788,63780.0,63779.0,0.03718081]
[1721316941976,0.47038,63778.0,63777.0,0.03718081]
[1721316942234,0.47038,63778.0,63772.0,0.002794]
[1721316942235,0.470395,63776.0,63775.0,0.03718081]
[1721316942480,0.783992,63776.0,63775.0,0.03718081]
[1721316942713,0.783992,63776.0,63775.0,0.03711432]
[1721316942939,0.156798,63776.0,63775.0,0.03711432]
[1721316943411,0.470395,63776.0,63775.0,0.03711432]
[1721316943627,0.470403,63775.0,63774.0,0.03711432]
[1721316944063,0.156801,63775.0,63774.0,0.03711432]
[1721316944286,0.313588,63778.0,63774.0,0.03711432]
[1721316944517,0.001,63780.0,63779.0,0.03711432]
[1721316944948,0.157788,63780.0,63779.0,0.03711432]
[1721316945192,0.470365,63780.0,63779.0,0.03711432]
[1721316945416,0.156803,63774.0,63773.0,0.03711432]
[1721316945643,0.156808,63772.0,63771.0,0.03711432]
[1721316945894,0.313607,63774.0,63761.0,0.0767]
[1721316945895,0.001,63776.0,63769.0,0.03711432]
[1721316946130,0.47044,63770.0,63769.0,0.03711432]
[1721316946348,0.470469,63766.0,63762.0,0.03711432]
[1721316946582,0.470469,63766.0,63763.0,0.03711432]
[1721316946824,0.470469,63766.0,63753.0,0.0773]
[1721316946825,0.470469,63766.0,63765.0,0.09992032]
[1721316947494,0.313618,63772.0,63771.0,0.03711432]
[1721316947724,0.470426,63772.0,63771.0,0.03711432]
[1721316948220,0.857387,63779.0,63772.0,0.03711432]
[1721316948438,0.001,63780.0,63779.0,0.03711432]
[1721316948882,0.157788,63780.0,63779.0,0.03711432]
[1721316949182,0.470365,63780.0,63779.0,0.03711432]
[1721316949432,0.313572,63782.0,63777.0,0.03711432]
[1721316949674,0.156793,63778.0,63777.0,0.03711432]
[1721316949916,0.47038,63778.0,63777.0,0.03711432]
[1721316950140,0.47038,63778.0,63775.0,0.03711432]
[1721316950141,0.783992,63776.0,63775.0,0.03711432]
[1721316950339,0.470403,63775.0,63774.0,0.03711432]
[1721316950553,0.47041,63774.0,63773.0,0.03711432]
[1721316950786,0.47041,63774.0,63767.0,0.03711432]
[1721316950787,0.313636,63768.0,63767.0,0.03711432]
[1721316951018,0.78409,63768.0,63767.0,0.03711432]
[1721316951236,0.470469,63766.0,63765.0,0.03711432]
[1721316951448,0.784115,63766.0,63765.0,0.03711432]
[1721316952291,0.313633,63769.0,63764.0,0.03711432]
[1721316952292,0.470476,63765.0,63764.0,0.03711432]
[1721316952511,0.784127,63765.0,63764.0,0.03711432]
[1721316953100,0.470476,63765.0,63764.0,0.03711432]
[1721316953532,0.001,63766.0,63765.0,0.03711432]
[1721316953955,0.007,63778.0,63777.0,0.50750232]
[1721316954164,0.007,63778.0,63777.0,0.58467711]
[1721316954380,0.007,63778.0,63777.0,0.27108511]
[1721316954805,0.156776,63786.0,63785.0,0.03711432]
[1721316955032,0.313538,63789.0,63788.0,0.03711432]
[1721316955033,0.4703,63789.0,63788.0,0.03711432]
[1721316955237,0.313546,63787.0,63783.0,0.03711432]
[1721316955466,0.376298,63797.0,63771.0,0.457821]
[1721316955467,0.470329,63785.0,63784.0,0.002794]
[1721316955682,0.470329,63785.0,63771.0,0.1442]
[1721316955683,0.156788,63780.0,63779.0,0.03711432]
[1721316956331,0.470365,63780.0,63779.0,0.03711432]
[1721316957049,0.313556,63785.0,63780.0,0.03711432]
[1721316957267,0.31354,63788.0,63787.0,0.03711432]
[1721316957468,0.156769,63788.0,63787.0,0.03711432]
[1721316958133,0.156774,63786.0,63784.0,0.03711432]
[1721316958358,0.313541,63788.0,63784.0,0.002794]
[1721316958359,0.156776,63785.0,63784.0,0.002794]
[1721316958590,0.156786,63781.0,63780.0,0.03711432]
[1721316958812,0.470365,63780.0,63779.0,0.04211432]
[1721316959495,0.783942,63780.0,63779.0,0.005]
[1721316959748,1.12666024,63780.0,63779.0,0.005]
[1721316959969,1.75381424,63780.0,63779.0,0.005]
[1721316960198,0.470448,63769.0,63768.0,0.03711432]
[1721316960486,0.470448,63769.0,63765.0,0.07717479]
[1721316960487,0.470398,63776.0,63775.0,0.03711432]
[1721316960739,0.21555154,63776.0,63766.0,0.07717479]
[1721316960951,0.470476,63765.0,63764.0,0.03711432]
[1721316961422,0.1413,63780.0,63774.0,0.03711432]
[1721316961643,0.156803,63774.0,63773.0,0.03711432]
[1721316961860,0.47041,63774.0,63773.0,0.03711432]
[1721316962120,0.313601,63776.0,63770.0,0.03711432]
[1721316962333,0.1413,63780.0,63773.0,0.03711432]
[1721316962334,0.46798874,63774.0,63773.0,0.03711432]
[1721316962563,0.156791,63779.0,63778.0,0.03711432]
[1721316962789,0.156791,63779.0,63768.0,0.003]
[1721316962790,0.313583,63779.0,63773.0,0.03711432]
[1721316963044,0.313583,63779.0,63768.0,0.005794]
[1721316963045,0.156808,63772.0,63771.0,0.03711432]
[1721316963259,0.15438174,63778.0,63769.0,0.03711432]
[1721316963260,0.47044,63770.0,63769.0,0.03711432]
[1721316963478,0.47044,63770.0,63768.0,0.003]
[1721316963479,0.156816,63769.0,63768.0,0.003]
[1721316963744,0.470448,63769.0,63768.0,0.003]
[1721316963951,0.15438174,63778.0,63767.0,0.03711432]
[1721316963952,0.78409,63768.0,63767.0,0.03711432]
[1721316964180,0.313646,63766.0,63765.0,0.11428911]
[1721316964453,0.15438174,63778.0,63764.0,0.009]
[1721316964454,0.470476,63765.0,63764.0,0.009]
[1721316964700,0.93850874,63765.0,63764.0,0.009]
[1721316964914,0.156875,63745.0,63743.0,0.03739559]
[1721316965144,0.470602,63748.0,63747.0,0.03711432]
[1721316966306,0.470602,63748.0,63746.0,0.07717479]
[1721316966307,0.4665,63758.0,63755.0,0.03711432]
[1721316966528,0.10910843,63804.0,63746.0,0.07717479]
[1721316966529,0.611,63773.0,63771.0,0.03711432]
[1721316966768,0.611,63773.0,63757.0,0.07717479]
[1721316966769,0.1445,63780.0,63779.0,0.03711432]
[1721316966980,0.156803,63774.0,63773.0,0.03711432]
[1721316967197,0.47041,63774.0,63773.0,0.03711432]
[1721316967419,0.47041,63774.0,63772.0,0.07717479]
[1721316967420,0.0796,63780.0,63779.0,0.03711432]
[1721316967645,0.470341,63784.0,63783.0,0.03711432]
[1721316967865,0.0649,63785.0,63784.0,0.03711432]
[1721316968116,0.379019,63792.0,63788.0,0.03711432]
[1721316968331,0.156764,63790.0,63789.0,0.03711432]
[1721316968553,0.156766,63789.0,63788.0,0.03711432]
[1721316968819,0.456292,63798.0,63795.0,0.03711432]
[1721316969030,0.456292,63798.0,63792.0,0.03711432]
[1721316969031,0.156754,63794.0,63792.0,0.03711432]
[1721316969252,0.470263,63794.0,63793.0,0.03711432]
[1721316969913,0.470263,63794.0,63784.0,0.002794]
[1721316969914,0.156764,63790.0,63789.0,0.03711432]
[1721316970127,0.156766,63789.0,63788.0,0.03711432]
[1721316970627,0.156764,63790.0,63789.0,0.03711432]
[1721316971069,0.470307,63788.0,63787.0,0.03711432]
[1721316971559,0.15708,63798.0,63789.0,0.03711432]
[1721316971560,0.161765,63790.0,63789.0,0.03711432]
[1721316971804,0.005,63790.0,63789.0,0.35064732]
[1721316972082,0.005,63790.0,63789.0,0.96204632]
[1721316973070,0.009,63794.0,63793.0,0.50738532]
[1721316973314,0.009,63794.0,63793.0,1.91286829]
[1721316973798,0.009,63794.0,63793.0,1.94620906]
[1721316974023,0.009,63794.0,63793.0,1.34899506]
[1721316974522,0.009,63794.0,63793.0,0.09731432]
[1721316974734,0.009,63794.0,63793.0,0.03711432]
[1721316974952,0.4665,63811.0,63805.0,0.03711432]
[1721316974953,0.156725,63806.0,63805.0,0.03711432]
[1721316975186,0.156722,63807.0,63806.0,0.03711432]
[1721316975427,0.62088174,63811.0,63795.0,0.3135]
[1721316975428,0.4665,63811.0,63810.0,0.03711432]
[1721316975658,0.313425,63812.0,63811.0,0.03711432]
[1721316975659,0.156711,63812.0,63811.0,0.03711432]
[1721316975910,0.0799,63821.0,63820.0,0.03711432]
[1721316976147,0.0799,63821.0,63805.0,0.07717479]
[1721316976148,0.15668,63824.0,63823.0,0.03711432]
[1721316976375,0.470041,63824.0,63823.0,0.03711432]
[1721316977268,0.313349,63827.0,63825.0,0.03711432]
[1721316977523,0.1392,63829.0,63825.0,0.03711432]
[1721316977524,0.470026,63826.0,63825.0,0.03711432]
[1721316977993,0.156674,63827.0,63825.0,0.03711432]
[1721316978216,0.156674,63827.0,63826.0,0.03711432]
[1721316978931,0.373508,63835.0,63832.0,0.03711432]
[1721316978932,0.0602,63835.0,63832.0,0.03711432]
[1721316979155,0.156657,63834.0,63832.0,0.03711432]
[1721316979373,0.0771,63843.0,63832.0,0.19377532]
[1721316979592,0.0632,63849.0,63832.0,0.50709732]
[1721316979841,0.313262,63845.0,63832.0,0.19377532]
[1721316980057,0.156642,63840.0,63832.0,0.19377532]
[1721316980311,0.01383,63833.0,63832.0,0.50809732]
[1721316980551,0.01383,63833.0,63832.0,0.19477532]
[1721316980769,0.01383,63833.0,63832.0,0.50809732]
[1721316981023,0.01383,63833.0,63832.0,0.19777532]
[1721316981266,0.01383,63833.0,63832.0,0.004]
[1721316981487,0.72008674,63833.0,63832.0,0.004]
[1721316981735,1.42479941,63833.0,63832.0,0.004]
[1721316981949,1.83811641,63833.0,63832.0,0.004]
[1721316982844,0.156673,63827.0,63826.0,0.03811432]
[1721316983065,0.15438174,63832.0,63826.0,0.03811432]
[1721316983291,0.47002,63827.0,63826.0,0.03711432]
[1721316983534,0.15438174,63832.0,63818.0,0.07717479]
[1721316983535,0.156669,63829.0,63828.0,0.03711432]
[1721316983750,0.00883,63833.0,63832.0,0.03711432]
[1721316984412,0.00883,63833.0,63832.0,0.19377532]
[1721316984623,0.02183,63833.0,63832.0,0.19477532]
[1721316985123,0.02183,63833.0,63832.0,0.03811432]
[1721316985569,0.02183,63833.0,63832.0,0.58527211]
[1721316985797,0.02183,63833.0,63832.0,0.89859411]
[1721316986049,0.02183,63833.0,63832.0,1.36629785]
[1721316986303,0.00483,63833.0,63832.0,1.42649785]
[1721316986521,0.01783,63833.0,63832.0,1.47025447]
[1721316986736,0.01883,63833.0,63832.0,1.42749785]
[1721316986972,0.01883,63833.0,63832.0,1.47025447]
[1721316987186,0.00183,63833.0,63832.0,1.07875768]
[1721316987512,0.00183,63833.0,63832.0,1.39607968]
[1721316987854,0.00183,63833.0,63832.0,1.40007968]
[1721316988085,0.00183,63833.0,63832.0,1.08675768]
[1721316988345,0.00183,63833.0,63832.0,0.77343568]
[1721316988613,0.00183,63833.0,63832.0,0.14907094]
[1721316988860,0.00183,63833.0,63832.0,0.04511432]
[1721316989109,0.00183,63833.0,63832.0,0.51509732]
[1721316989329,0.00183,63833.0,63832.0,0.04511432]
[1721316989807,0.00083,63833.0,63832.0,0.04111432]
[1721316990047,0.00083,63833.0,63832.0,0.03711432]
[1721316990276,0.470805,63833.0,63832.0,0.03911432]
[1721316990525,0.00083,63833.0,63832.0,0.04111432]
[1721316991032,0.784122,63833.0,63832.0,0.04111432]
[1721316991318,0.784122,63833.0,63832.0,0.008]
[1721316991319,1.01825168,63833.0,63832.0,0.008]
[1721316991566,0.932122,63833.0,63832.0,0.004]
[1721316991794,1.245439,63833.0,63832.0,0.004]
[1721316992018,1.39982074,63833.0,63832.0,0.004]
[1721316992492,1.39982074,63833.0,63832.0,0.04111432]
[1721316992493,0.936122,63833.0,63832.0,0.04111432]
[1721316992728,0.622805,63833.0,63832.0,0.04111432]
[1721316992957,0.161488,63833.0,63832.0,0.04111432]
[1721316993179,0.474805,63833.0,63832.0,0.04111432]
[1721316993434,0.789122,63833.0,63832.0,0.04111432]
[1721316993693,0.475805,63833.0,63832.0,0.04111432]
[1721316994403,0.475805,63833.0,63832.0,0.03711432]
[1721316995129,0.00483,63833.0,63832.0,0.03711432]
[1721316995396,0.474805,63833.0,63832.0,0.03711432]
[1721316995645,0.313322,63832.0,63828.0,0.03711432]
[1721316995902,0.470005,63829.0,63828.0,0.03711432]
[1721316996132,0.00483,63833.0,63832.0,0.03711432]
[1721316996609,0.318147,63833.0,63832.0,0.03711432]
[1721316996835,0.00483,63833.0,63832.0,0.03711432]
[1721316997286,0.471805,63833.0,63832.0,0.03711432]
[1721316997537,0.785122,63833.0,63832.0,0.03711432]
[1721316997766,0.793122,63833.0,63832.0,0.03711432]
[1721316997999,0.788122,63833.0,63832.0,0.03711432]
[1721316998226,0.156671,63828.0,63827.0,0.03711432]
[1721316998457,0.470013,63828.0,63827.0,0.03711432]
[1721316998929,0.470013,63828.0,63810.0,0.390427]
[1721316998930,0.15668,63824.0,63823.0,0.03711432]
[1721316999154,0.783402,63824.0,63823.0,0.03711432]
[1721316999403,0.064,63827.0,63818.0,0.03711432]
[1721316999404,0.156693,63819.0,63818.0,0.03711432]
[1721316999654,0.0753,63821.0,63817.0,0.03711432]
[1721316999655,0.783477,63818.0,63817.0,0.03711432]
[1721316999876,1.096868,63818.0,63817.0,0.03711432]
[1721317000335,0.783502,63816.0,63815.0,0.03711432]
[1721317000584,0.15438174,63820.0,63811.0,0.03711432]
[1721317000798,0.313413,63814.0,63813.0,0.03711432]
[1721317001018,0.470118,63814.0,63813.0,0.03711432]
[1721317001252,0.783531,63814.0,63813.0,0.03711432]
[1721317001474,0.783531,63814.0,63804.0,0.07717479]
[1721317001475,0.156695,63818.0,63817.0,0.03711432]
[1721317001713,0.01,63819.0,63817.0,0.03711432]
[1721317001943,0.1567,63816.0,63815.0,0.03711432]
[1721317002179,0.783502,63816.0,63815.0,0.03711432]
[1721317002416,0.01,63819.0,63812.0,0.03711432]
[1721317002644,0.470122,63813.0,63812.0,0.03711432]
[1721317002950,0.47013,63812.0,63811.0,0.001]
[1721317003420,0.013,63820.0,63819.0,0.03711432]
[1721317003636,0.024,63820.0,63819.0,0.03711432]
[1721317003855,0.024,63820.0,63817.0,0.03711432]
[1721317004121,0.313391,63818.0,63816.0,0.03711432]
[1721317004351,0.470094,63817.0,63816.0,0.03711432]
[1721317004577,0.78349,63817.0,63816.0,0.03711432]
[1721317005074,0.313348,63827.0,63804.0,0.07717479]
[1721317005075,0.4665,63832.0,63828.0,0.03711432]
[1721317005336,0.4665,63832.0,63823.0,0.03711432]
[1721317005337,0.470041,63824.0,63823.0,0.03711432]
[1721317005562,0.39428174,63831.0,63811.0,0.156711]
[1721317005563,0.55094474,63831.0,63830.0,0.03711432]
[1721317005819,0.55094474,63831.0,63829.0,0.03711432]
[1721317005820,0.156666,63830.0,63829.0,0.03711432]
[1721317006040,0.066,63837.0,63832.0,0.03711432]
[1721317006294,0.156657,63834.0,63832.0,0.03711432]
[1721317006521,0.157488,63833.0,63832.0,0.04124357]
[1721317006783,0.00083,63833.0,63832.0,0.04124357]
[1721317007015,0.00083,63833.0,63832.0,0.50709732]
[1721317007235,0.00083,63833.0,63832.0,0.51122264]
[1721317007721,0.00083,63833.0,63832.0,1.70543965]
[1721317008445,0.00083,63833.0,63832.0,1.10901765]
[1721317008672,0.00083,63833.0,63832.0,0.17133091]
[1721317008921,0.470805,63833.0,63832.0,0.04123964]
[1721317009161,0.784122,63833.0,63832.0,0.00412532]
[1721317009400,0.470005,63829.0,63828.0,0.001]
[1721317009657,0.31336,63825.0,63822.0,0.03711432]
[1721317009899,0.15668,63824.0,63823.0,0.03711432]
[1721317010137,0.15438174,63832.0,63820.0,0.03711432]
[1721317010378,0.313363,63824.0,63819.0,0.03711432]
[1721317010620,0.156686,63822.0,63821.0,0.03711432]
[1721317010818,0.156684,63823.0,63822.0,0.03711432]
[1721317011174,0.313366,63823.0,63816.0,0.03711432]
[1721317011411,0.313366,63823.0,63804.0,0.47182979]
[1721317011412,0.38737479,63821.0,63799.0,0.062772]
[1721317011641,0.31345,63806.0,63805.0,0.03711432]
[1721317011850,0.156734,63802.0,63801.0,0.03711432]
[1721317012066,0.156732,63803.0,63802.0,0.03711432]
[1721317012281,0.470196,63803.0,63802.0,0.03711432]
[1721317012496,0.156734,63802.0,63801.0,0.03711432]
[1721317012711,0.156739,63800.0,63799.0,0.03711432]
[1721317012929,0.313479,63800.0,63797.0,0.03711432]
[1721317013166,0.470233,63798.0,63797.0,0.03711432]
[1721317013590,0.313463,63804.0,63798.0,0.03711432]
[1721317013793,0.470192,63804.0,63803.0,0.03711432]
[1721317014408,0.470188,63804.0,63803.0,0.03711432]
[1721317015439,0.472188,63804.0,63803.0,0.03711432]
[1721317015660,0.002,63804.0,63803.0,0.03711432]
[1721317016691,0.002,63804.0,63803.0,0.66169206]
[1721317016894,0.46304871,63826.0,63825.0,0.03711432]
[1721317017105,0.46304871,63826.0,63825.0,0.19379232]
[1721317017306,0.00083,63833.0,63832.0,0.03711432]
[1721317017680,0.00083,63833.0,63832.0,0.04401086]
[1721317018455,0.00083,63833.0,63832.0,0.51399386]
[1721317018657,0.00083,63833.0,63832.0,0.82692928]
[1721317018866,0.00083,63833.0,63832.0,1.29463302]
[1721317020127,0.00083,63833.0,63832.0,0.98131102]
[1721317020346,0.00083,63833.0,63832.0,0.04362428]
[1721317021201,0.00083,63833.0,63819.0,0.0778]
[1721317021202,0.609983,63832.0,63831.0,0.03672774]
[1721317021412,0.313327,63831.0,63823.0,0.03672774]
[1721317021616,0.470041,63824.0,63823.0,0.03672774]
[1721317021846,0.783402,63824.0,63823.0,0.03672774]
[1721317022083,0.25438174,63830.0,63823.0,0.03672774]
[1721317022084,0.1,63830.0,63823.0,0.03672774]
[1721317022297,0.1,63830.0,63829.0,0.03672774]
[1721317022515,0.256666,63830.0,63829.0,0.03672774]
[1721317022720,0.156668,63829.0,63828.0,0.03672774]
[1721317023145,0.00383,63833.0,63832.0,0.03672774]
[1721317023366,0.00383,63833.0,63832.0,0.19338874]
[1721317023572,0.00083,63833.0,63832.0,0.03672774]
[1721317023786,0.00083,63833.0,63832.0,0.19338874]
[1721317024233,0.00083,63833.0,63832.0,0.03672774]
[1721317024441,0.470805,63833.0,63832.0,0.03672774]
[1721317024655,0.784122,63833.0,63832.0,0.03672774]
[1721317024885,0.785122,63833.0,63832.0,0.04072774]
[1721317025088,0.8267572,63833.0,63832.0,0.04072774]
[1721317025297,0.8267572,63833.0,63832.0,0.004]
[1721317025298,1.1400742,63833.0,63832.0,0.004]
[1721317025507,1.74617294,63833.0,63832.0,0.004]
[1721317025790,2.38995583,63833.0,63832.0,0.004]
[1721317026013,0.156715,63810.0,63809.0,0.03672774]
[1721317026230,0.470145,63810.0,63809.0,0.03672774]
[1721317026447,0.0627,63812.0,63807.0,0.03672774]
[1721317026656,0.47016,63808.0,63807.0,0.03672774]
[1721317026858,0.0627,63812.0,63804.0,0.03672774]
[1721317026859,0.783637,63805.0,63804.0,0.03672774]
[1721317027078,0.470188,63804.0,63803.0,0.03672774]
[1721317027293,0.470196,63803.0,63802.0,0.03672774]
[1721317027938,0.156732,63803.0,63802.0,0.03672774]
[1721317028151,0.156732,63803.0,63781.0,0.05]
[1721317028152,0.156744,63798.0,63797.0,0.03672774]
[1721317028401,0.25438174,63803.0,63801.0,0.03672774]
[1721317028402,0.1,63802.0,63801.0,0.03672774]
[1721317028614,0.1,63803.0,63802.0,0.03672774]
[1721317028615,0.570196,63803.0,63802.0,0.03672774]
[1721317028844,0.470211,63801.0,63800.0,0.03672774]
[1721317029044,0.570211,63801.0,63800.0,0.03672774]
[1721317029281,0.883685,63801.0,63800.0,0.03672774]
[1721317029867,1.097176,63800.0,63799.0,0.03672774]
[1721317030169,0.156744,63798.0,63797.0,0.03672774]
[1721317030345,0.156757,63793.0,63790.0,0.000913]
[1721317030546,0.29918174,63798.0,63790.0,0.000913]
[1721317030547,0.313523,63791.0,63790.0,0.000913]
[1721317030746,0.783807,63791.0,63790.0,0.03764074]
[1721317031415,0.156761,63791.0,63790.0,0.03764074]
[1721317031634,0.313506,63795.0,63790.0,0.03764074]
[1721317031635,0.550033,63798.0,63797.0,0.03672774]
[1721317031853,0.470233,63798.0,63797.0,0.03672774]
[1721317032365,0.783747,63796.0,63795.0,0.03672774]
[1721317032573,0.470277,63792.0,63791.0,0.03672774]
[1721317032815,0.470284,63791.0,63790.0,0.000913]
[1721317033022,1.14605531,63791.0,63790.0,0.000913]
[1721317033477,1.45957831,63791.0,63790.0,0.000913]
[1721317033709,1.46557831,63791.0,63790.0,0.000913]
[1721317034394,1.87310131,63791.0,63790.0,0.000913]
[1721317034606,2.37482431,63791.0,63790.0,0.000913]
[1721317034829,2.38809657,63791.0,63790.0,0.000913]
[1721317035042,0.784055,63771.0,63770.0,0.03672774]
[1721317035272,0.470433,63771.0,63770.0,0.03672774]
[1721317035484,0.532965,63780.0,63779.0,0.03672774]
[1721317036160,0.846542,63780.0,63779.0,0.03672774]
[1721317036390,0.846542,63780.0,63767.0,0.15682]
[1721317036391,0.236186,63781.0,63780.0,0.03672774]
[1721317036617,0.156793,63778.0,63777.0,0.03672774]
[1721317036820,0.783967,63778.0,63777.0,0.03672774]
[1721317037050,0.0794,63781.0,63778.0,0.03672774]
[1721317037051,0.156791,63779.0,63778.0,0.03672774]
[1721317037295,0.313578,63780.0,63779.0,0.03672774]
[1721317037296,0.156789,63780.0,63779.0,0.03672774]
[1721317037569,0.4665,63783.0,63779.0,0.03672774]
[1721317037791,0.4665,63783.0,63773.0,0.07717479]
[1721317037792,0.4665,63783.0,63782.0,0.11390253]
[1721317038038,0.298552,63795.0,63794.0,0.03672774]
[1721317038280,0.470256,63795.0,63794.0,0.03672774]
[1721317038529,0.156754,63794.0,63793.0,0.03672774]
[1721317038828,0.156753,63795.0,63793.0,0.03672774]
[1721317039063,0.156753,63795.0,63794.0,0.03672774]
[1721317039521,0.256753,63795.0,63794.0,0.03672774]
[1721317040245,0.570257,63795.0,63794.0,0.03672774]
[1721317040704,0.104,63795.0,63794.0,0.03672774]
[1721317041279,0.004,63795.0,63794.0,0.56809074]
[1721317041511,0.004,63795.0,63794.0,1.71299948]
[1721317041960,0.46304871,63814.0,63813.0,0.03672774]
[1721317042416,0.313367,63823.0,63822.0,0.03672774]
[1721317042715,0.21988,63824.0,63823.0,0.03672774]
[1721317042950,0.00083,63833.0,63832.0,0.03672774]
[1721317043167,0.784122,63833.0,63832.0,0.03672774]
[1721317043439,0.156671,63828.0,63827.0,0.03672774]
[1721317043703,0.47002,63827.0,63826.0,0.03672774]
[1721317043919,0.47002,63827.0,63813.0,0.313415]
[1721317043920,0.00083,63833.0,63832.0,0.03672774]
[1721317044435,0.00083,63833.0,63832.0,0.50671074]
[1721317044686,0.00083,63833.0,63832.0,0.88063274]
[1721317044934,0.00083,63833.0,63832.0,0.88758266]
[1721317045178,0.00083,63833.0,63832.0,1.3552864]
[1721317045913,0.00683,63833.0,63832.0,1.3562864]
[1721317046630,0.00683,63833.0,63832.0,0.04467766]
[1721317047074,0.01383,63833.0,63832.0,0.51466066]
[1721317047529,0.00683,63833.0,63832.0,0.9823644]
[1721317047976,0.00783,63833.0,63832.0,0.9833644]
[1721317048204,0.00783,63833.0,63832.0,0.99895593]
[1721317048438,0.00783,63833.0,63832.0,1.31227793]
[1721317048648,0.00783,63833.0,63832.0,0.06026919]
[1721317048649,0.00183,63833.0,63832.0,0.06026919]
[1721317048915,0.00183,63833.0,63832.0,0.38331193]
[1721317048916,0.00283,63833.0,63832.0,0.38331193]
[1721317049141,0.00283,63833.0,63832.0,1.09065593]
[1721317049374,0.00283,63833.0,63832.0,1.0750644]
[1721317049600,0.00283,63833.0,63832.0,1.3883864]
[1721317049826,0.00283,63833.0,63832.0,1.0750644]
[1721317050045,0.00283,63833.0,63832.0,0.9943644]
[1721317050322,0.00183,63833.0,63832.0,0.21233866]
[1721317050545,0.00183,63833.0,63832.0,0.85298266]
[1721317050546,0.00283,63833.0,63832.0,0.85298266]
[1721317050771,0.00383,63833.0,63832.0,1.3216864]
[1721317051002,0.00383,63833.0,63832.0,1.4330864]
[1721317051260,0.00383,63833.0,63832.0,1.3820864]
[1721317051261,0.00283,63833.0,63832.0,1.3820864]
[1721317051729,0.00383,63833.0,63832.0,1.4330864]
[1721317051969,0.00383,63833.0,63832.0,1.3830864]
[1721317052231,0.00083,63833.0,63832.0,1.3560864]
[1721317053142,0.00083,63833.0,63832.0,0.82698266]
[1721317053837,0.00083,63833.0,63832.0,0.04467766]
[1721317053838,0.00183,63833.0,63832.0,0.04467766]
[1721317054312,0.00083,63833.0,63832.0,0.20033866]
[1721317054553,0.00083,63833.0,63832.0,0.51366066]
[1721317054764,0.00183,63833.0,63832.0,0.51466066]
[1721317054988,0.00183,63833.0,63832.0,0.20133866]
[1721317055217,0.00183,63833.0,63832.0,0.20033866]
[1721317055407,0.00083,63833.0,63832.0,0.20033866]
[1721317055677,0.00183,63833.0,63832.0,0.51466066]
[1721317056177,0.00183,63833.0,63832.0,0.9823644]
[1721317056393,0.00183,63833.0,63832.0,1.4251864]
[1721317056635,0.00183,63833.0,63832.0,1.3751864]
[1721317057089,0.00183,63833.0,63832.0,1.0618644]
[1721317057314,0.00183,63833.0,63832.0,0.90748266]
[1721317057548,0.00283,63833.0,63832.0,0.84198266]
[1721317058235,0.00283,63833.0,63832.0,0.82798266]
[1721317058236,0.00183,63833.0,63832.0,0.82798266]
[1721317058685,0.00183,63833.0,63832.0,1.2956864]
[1721317058929,0.00283,63833.0,63832.0,1.3096864]
[1721317059637,0.00283,63833.0,63832.0,1.3058864]
[1721317060112,0.00283,63833.0,63832.0,1.3686224]
[1721317060364,0.00283,63833.0,63832.0,1.0553004]
[1721317062005,0.00283,63833.0,63832.0,1.3686224]
[1721317062213,0.00283,63833.0,63832.0,1.0553004]
[1721317062443,0.00283,63833.0,63832.0,0.52486066]
[1721317062660,0.00283,63833.0,63832.0,0.21153866]
[1721317062910,0.00283,63833.0,63832.0,0.52486066]
[1721317063102,0.00283,63833.0,63832.0,0.05487766]
[1721317063313,0.00283,63833.0,63832.0,0.21153866]
[1721317063977,0.00283,63833.0,63832.0,0.05487766]
[1721317064705,0.00283,63833.0,63832.0,0.21153866]
[1721317065371,0.00283,63833.0,63832.0,0.05487766]
[1721317065587,0.00283,63833.0,63832.0,0.21153866]
[1721317065826,0.00283,63833.0,63832.0,0.05487766]
[1721317066045,0.00283,63833.0,63832.0,0.21153866]
[1721317066269,0.00283,63833.0,63832.0,0.52486066]
[1721317066501,0.00283,63833.0,63832.0,0.9925644]
[1721317066740,0.00283,63833.0,63832.0,1.3058864]
[1721317066975,0.13993,63847.0,63842.0,0.156635]
[1721317067212,0.13993,63847.0,63846.0,0.03292774]
[1721317068207,0.313258,63845.0,63844.0,0.03292774]
[1721317068431,0.313258,63845.0,63842.0,0.01559153]
[1721317068432,0.156634,63843.0,63842.0,0.01559153]
[1721317068659,1.56408774,63843.0,63842.0,0.01559153]
[1721317068887,2.06403731,63843.0,63842.0,0.01559153]
[1721317069115,2.06403731,63843.0,63832.0,0.026]
[1721317069116,1.096609,63833.0,63832.0,0.026]
[1721317069572,1.33109074,63833.0,63832.0,0.026]
[1721317070055,0.0801,63833.0,63832.0,0.05792774]
[1721317070280,0.158624,63847.0,63846.0,0.03292774]